bitfinex/quotes_SOLUSD_20220302
["timestamp","ask_amount","ask_price","bid_price","bid_amount"]
[1646224806288,84.45943322,103.44,103.32,58.62800329]
[1646224806488,82.9954597,103.44,103.32,213.28800329]
[1646224806690,82.9954597,103.44,103.33,0.42987147]
[1646224807087,68.3271597,103.44,103.32,213.28800329]
[1646224807288,65.97875134,103.44,103.32,213.28800329]
[1646224807489,65.97875134,103.44,103.34,27.868053]
[1646224807686,138.98904473,103.46,103.34,27.868053]
[1646224807687,1.30494718,103.47,103.42,58.09]
[1646224807890,0.48553684,103.48,103.43,64.09]
[1646224808088,0.48553684,103.48,103.43,6.25]
[1646224808292,0.00553684,103.48,103.43,133.65002326]
[1646224808488,1.828,103.56,103.44,0.45078071]
[1646224808692,57.77712654,103.55,103.44,89.63247813]
[1646224808889,2.07681717,103.53,103.44,87.3334381]
[1646224809088,57.63843161,103.51,103.45,6.0]
[1646224809290,14.4943,103.55,103.46,38.31331819]
[1646224809489,2.6000696,103.62,103.48,0.41935519]
[1646224809490,48.87000819,103.62,103.48,0.41935519]
[1646224809689,47.6646,103.62,103.5,58.09]
[1646224809894,47.6646,103.62,103.52,58.09]
[1646224810090,1.828,103.65,103.52,58.34]
[1646224810290,9.09337376,103.6,103.53,42.75277]
[1646224810491,9.09337376,103.6,103.53,0.25]
[1646224811395,9.34337376,103.6,103.53,0.25]
[1646224811595,23.83017376,103.6,103.53,44.09251319]
[1646224811792,23.83017376,103.6,103.53,44.34251319]
[1646224811996,23.58017376,103.6,103.53,44.34251319]
[1646224812193,23.58017376,103.6,103.53,0.25]
[1646224812895,23.58017376,103.6,103.51,179.5317]
[1646224813100,23.58017376,103.6,103.52,14.4859]
[1646224813301,23.58017376,103.6,103.52,0.25]
[1646224813604,23.58017376,103.6,103.46,76.4223]
[1646224813801,23.58017376,103.6,103.47,47.5963]
[1646224814001,121.71908063,103.6,103.47,47.5963]
[1646224814201,123.54908063,103.6,103.47,47.5963]
[1646224814802,136.54950147,103.6,103.47,47.5963]
[1646224815005,152.5122876,103.6,103.45,23.4247]
[1646224815204,283.1685111,103.6,103.45,23.4247]
[1646224815604,186.5985111,103.6,103.45,23.4247]
[1646224815801,186.5985111,103.6,103.47,58.09]
[1646224815802,153.12950147,103.6,103.47,58.09]
[1646224816003,151.29950147,103.6,103.48,27.6485007]
[1646224816405,151.29950147,103.6,103.48,27.8985007]
[1646224817106,249.69750147,103.6,103.48,27.8985007]
[1646224817307,153.12750147,103.6,103.48,27.8985007]
[1646224818008,249.69750147,103.6,103.48,27.8985007]
[1646224818208,153.12750147,103.6,103.48,85.9885007]
[1646224818408,138.55817376,103.6,103.48,85.9885007]
[1646224818608,138.30817376,103.6,103.48,85.9885007]
[1646224819009,138.30817376,103.6,103.5,53.21419666]
[1646224819222,136.48017376,103.6,103.5,53.46419666]
[1646224819625,136.48017376,103.6,103.5,111.55419666]
[1646224819823,23.58017376,103.6,103.5,111.55419666]
[1646224820026,23.83017376,103.6,103.5,208.12419666]
[1646224820226,23.83017376,103.6,103.51,0.42847669]
[1646224820625,23.58017376,103.6,103.5,208.12419666]
[1646224820826,9.09337376,103.6,103.53,129.85185963]
[1646224821025,1.825,103.64,103.53,33.53185963]
[1646224821227,1.824,103.66,103.54,47.2929]
[1646224821427,1.823,103.67,103.54,47.5429]
[1646224822028,1.823,103.67,103.55,52.30243182]
[1646224822029,14.4822,103.64,103.55,52.30243182]
[1646224822225,0.83287725,103.63,103.55,52.55243182]
[1646224822628,0.83287725,103.63,103.55,0.25]
[1646224823226,15.31677725,103.63,103.54,47.5429]
[1646224823831,17.66039432,103.63,103.54,47.5429]
[1646224824032,17.91039432,103.63,103.54,47.5429]
[1646224824730,17.66039432,103.63,103.54,100.51630473]
[1646224826035,17.91039432,103.63,103.54,100.51630473]
[1646224827139,17.91039432,103.63,103.55,6.39974596]
[1646224827337,17.91039432,103.63,103.55,6.25]
[1646224827740,17.66039432,103.63,103.56,33.52265156]
[1646224827940,17.66039432,103.63,103.56,0.25]
[1646224829039,17.91039432,103.63,103.55,58.20716741]
[1646224830541,3.17649432,103.63,103.56,0.42940236]
[1646224830740,14.4807,103.65,103.55,58.20716741]
[1646224831041,14.4807,103.65,103.57,0.51559171]
[1646224831441,14.4807,103.65,103.56,0.25]
[1646224831750,16.82431707,103.65,103.56,0.25]
[1646224831942,14.4848,103.62,103.56,0.25]
[1646224832144,10.17903191,103.61,103.56,0.25]
[1646224832441,10.17903191,103.61,103.55,52.20716741]
[1646224832640,10.17903191,103.61,103.54,47.2929]
[1646224832842,24.66453191,103.61,103.51,18.3448]
[1646224833044,27.00814898,103.61,103.51,51.4181]
[1646224833244,27.00814898,103.61,103.51,47.5581]
[1646224833544,123.57814898,103.61,103.51,51.4201]
[1646224833742,131.87214898,103.61,103.51,47.5581]
[1646224833945,152.61695752,103.61,103.51,47.5581]
[1646224834144,172.62928312,103.61,103.51,47.5581]
[1646224834544,56.29695752,103.61,103.52,45.10564776]
[1646224834744,27.25814898,103.61,103.52,45.10564776]
[1646224835346,27.25814898,103.61,103.51,47.5581]
[1646224835545,146.35895752,103.61,103.51,47.5581]
[1646224835745,152.71795752,103.61,103.51,47.5581]
[1646224836348,152.71795752,103.61,103.48,46.05628889]
[1646224836546,56.14795752,103.61,103.48,93.22038889]
[1646224836746,154.2719945,103.61,103.48,93.22038889]
[1646224836945,174.0343201,103.61,103.48,93.22038889]
[1646224837146,90.46474094,103.61,103.48,93.22038889]
[1646224837547,104.68744094,103.61,103.48,93.22038889]
[1646224838048,201.25744094,103.61,103.48,93.47038889]
[1646224839145,104.68744094,103.61,103.48,93.47038889]
[1646224839346,104.68744094,103.61,103.49,0.65433295]
[1646224839547,104.68744094,103.61,103.5,40.4397674]
[1646224839746,84.92511534,103.61,103.5,40.6897674]
[1646224839946,56.26726982,103.61,103.5,40.6897674]
[1646224840847,43.26684898,103.61,103.5,40.6897674]
[1646224841246,41.48084898,103.61,103.5,40.6897674]
[1646224841448,41.23084898,103.61,103.5,218.8092674]
[1646224841848,24.66453191,103.61,103.5,218.8092674]
[1646224842252,24.66453191,103.61,103.5,221.35830743]
[1646224842549,24.66453191,103.61,103.53,43.94822177]
[1646224842750,24.66453191,103.61,103.53,44.19822177]
[1646224843753,14.4855,103.61,103.53,198.85822177]
[1646224844054,1.873,103.62,103.53,198.85822177]
[1646224844452,14.4835,103.63,103.54,3.861]
[1646224844651,51.1560991,103.62,103.55,42.54783452]
[1646224844851,51.1560991,103.62,103.55,42.79783452]
[1646224845551,51.1560991,103.62,103.55,139.36783452]
[1646224845756,51.1560991,103.62,103.55,100.88783452]
[1646224847255,51.1560991,103.62,103.55,42.79783452]
[1646224847457,65.6399991,103.62,103.55,42.79783452]
[1646224847857,2.34361707,103.61,103.55,42.54783452]
[1646224848056,8.69784461,103.6,103.55,42.54783452]
[1646224848659,8.94784461,103.6,103.55,42.54783452]
[1646224849262,23.43494461,103.6,103.52,50.8514]
[1646224849459,25.77856168,103.6,103.52,47.2404]
[1646224850261,25.77856168,103.6,103.52,105.77179592]
[1646224851263,23.43494461,103.6,103.52,105.77179592]
[1646224851861,23.18494461,103.6,103.52,105.77179592]
[1646224852361,14.4871,103.6,103.52,105.77179592]
[1646224853384,14.4871,103.6,103.52,260.43179592]
[1646224853581,64.92533881,103.62,103.52,260.43179592]
[1646224853981,64.92533881,103.62,103.52,163.86179592]
[1646224854682,63.05133881,103.62,103.52,178.34559592]
[1646224854883,1.784,103.63,103.54,154.66]
[1646224855085,16.82571707,103.64,103.54,58.34]
[1646224855485,16.82571707,103.64,103.54,0.25]
[1646224855683,16.82571707,103.64,103.54,24.3024]
[1646224855888,16.82571707,103.64,103.55,86.05466037]
[1646224856087,16.82571707,103.64,103.55,86.30466037]
[1646224856689,7.65041604,103.63,103.55,86.30466037]
[1646224856889,7.65041604,103.63,103.55,28.21466037]
[1646224857087,22.13291604,103.63,103.55,28.21466037]
[1646224857387,14.4825,103.63,103.55,28.21466037]
[1646224857786,2.59361707,103.64,103.55,124.78466037]
[1646224857987,2.59361707,103.64,103.56,154.66]
[1646224858187,2.34361707,103.64,103.57,151.77307899]
[1646224858389,2.34361707,103.64,103.57,210.11307899]
[1646224858588,16.3108,103.65,103.57,210.11307899]
[1646224858788,1.83,103.65,103.57,210.11307899]
[1646224859390,2.34366458,103.68,103.58,3.86]
[1646224859589,75.54859237,103.71,103.61,185.9529773]
[1646224859789,75.54859237,103.71,103.61,186.2029773]
[1646224859990,75.54859237,103.71,103.61,200.6741773]
[1646224859991,65.11949237,103.71,103.61,200.6741773]
[1646224860193,65.11949237,103.71,103.63,55.20307899]
[1646224860390,65.11949237,103.71,103.63,55.45307899]
[1646224860690,14.4722,103.71,103.63,210.11307899]
[1646224860897,23.8691,103.75,103.63,210.11307899]
[1646224861093,14.4695,103.73,103.64,6.0]
[1646224861291,23.8691,103.75,103.65,154.66]
[1646224861490,23.8691,103.75,103.65,154.91]
[1646224861695,48.42258021,103.75,103.66,127.8629773]
[1646224861891,48.42258021,103.75,103.66,186.2029773]
[1646224862390,25.38458654,103.77,103.66,186.2029773]
[1646224862591,73.60048654,103.79,103.68,154.66]
[1646224862793,25.38458654,103.79,103.68,154.91]
[1646224863192,25.38458654,103.79,103.69,96.57]
[1646224863394,42.68682391,103.78,103.69,203.39417904]
[1646224864093,42.68682391,103.78,103.69,106.82417904]
[1646224864294,57.14952391,103.78,103.69,106.82417904]
[1646224865393,57.14952391,103.78,103.69,48.73417904]
[1646224865595,57.39952391,103.78,103.69,145.30417904]
[1646224865797,57.39952391,103.78,103.69,48.73417904]
[1646224866997,57.39952391,103.78,103.7,0.56580536]
[1646224870301,57.39952391,103.78,103.69,203.39417904]
[1646224870302,57.39952391,103.78,103.69,48.73417904]
[1646224871108,57.39952391,103.78,103.69,106.82417904]
[1646224871304,57.39952391,103.78,103.69,203.39417904]
[1646224871505,57.39952391,103.78,103.69,106.82417904]
[1646224872310,57.39952391,103.78,103.7,154.66]
[1646224872508,57.14952391,103.78,103.71,38.01187725]
[1646224872706,57.14952391,103.78,103.71,38.26187725]
[1646224872906,57.14952391,103.78,103.69,24.2892]
[1646224874008,57.14952391,103.78,103.7,48.57853744]
[1646224876111,57.39952391,103.78,103.7,48.57853744]
[1646224876812,57.39952391,103.78,103.7,48.82853744]
[1646224878515,57.39952391,103.78,103.69,24.2892]
[1646224878717,83.05672319,103.78,103.68,22.5592]
[1646224878916,83.05672319,103.78,103.66,24.2656]
[1646224879118,202.81586973,103.78,103.66,24.2656]
[1646224879620,315.71586973,103.78,103.66,24.2656]
[1646224879816,373.80586973,103.78,103.62,25.44674003]
[1646224880017,97.89920434,103.76,103.62,22.8977]
[1646224880217,14.4756,103.72,103.62,22.8977]
[1646224880618,2.34366458,103.71,103.62,22.8977]
[1646224880818,17.1671198,103.7,103.63,51.79642664]
[1646224881619,14.474,103.69,103.63,51.79642664]
[1646224882218,14.474,103.69,103.63,52.04642664]
[1646224883625,14.724,103.69,103.63,52.04642664]
[1646224884221,0.25,103.69,103.63,52.04642664]
[1646224884421,17.1671198,103.7,103.63,206.70642664]
[1646224884723,22.6097,103.74,103.63,110.13642664]
[1646224884922,22.6097,103.74,103.63,206.70642664]
[1646224885531,46.49998656,103.73,103.63,206.70642664]
[1646224885726,46.49998656,103.73,103.63,110.13642664]
[1646224886125,14.4699,103.72,103.63,133.09042664]
[1646224886527,14.4699,103.72,103.63,229.66042664]
[1646224886924,23.7642,103.77,103.63,232.20946667]
[1646224887126,23.7642,103.77,103.65,154.66]
[1646224887127,14.4654,103.76,103.65,154.66]
[1646224887325,19.4654,103.76,103.65,154.91]
[1646224887526,19.4654,103.76,103.65,157.45904003]
[1646224887727,51.95996429,103.75,103.67,34.69962965]
[1646224887927,51.95996429,103.75,103.67,34.94962965]
[1646224888128,52.20996429,103.75,103.67,34.94962965]
[1646224888326,66.67576429,103.75,103.67,93.03962965]
[1646224888930,14.7158,103.75,103.67,93.03962965]
[1646224889129,14.4658,103.75,103.67,93.03962965]
[1646224889327,14.4658,103.75,103.67,189.60962965]
[1646224889528,14.4638,103.77,103.67,189.60962965]
[1646224889726,19.4638,103.77,103.67,93.03962965]
[1646224889926,56.82440045,103.76,103.67,93.03962965]
[1646224890127,56.82440045,103.76,103.66,3.856]
[1646224890328,78.61474321,103.76,103.66,3.856]
[1646224890528,2.34366458,103.75,103.66,3.856]
[1646224890727,14.4721,103.73,103.63,22.954]
[1646224891129,3.02954326,103.72,103.64,55.3983535]
[1646224891633,3.02954326,103.72,103.64,55.6483535]
[1646224891829,3.02954326,103.72,103.64,55.03911771]
[1646224892029,3.27954326,103.72,103.64,55.03911771]
[1646224892530,8.27954326,103.72,103.64,55.03911771]
[1646224893130,14.4721,103.71,103.64,55.03911771]
[1646224893532,48.7924985,103.7,103.64,55.03911771]
[1646224894354,53.7924985,103.7,103.64,55.03911771]
[1646224894554,68.2652985,103.7,103.64,55.03911771]
[1646224894754,68.2652985,103.7,103.62,23.125]
[1646224894955,86.66351827,103.7,103.62,23.125]
[1646224895355,86.66351827,103.7,103.6,3.858]
[1646224895555,86.66351827,103.7,103.55,86.7428]
[1646224895556,5.0,103.68,103.56,3.859]
[1646224895755,11.670681,103.67,103.6,60.95838082]
[1646224895955,14.4808,103.66,103.6,60.95838082]
[1646224896156,1.26402462,103.7,103.6,60.95838082]
[1646224896355,15.96143274,103.71,103.6,60.95838082]
[1646224896957,5.0,103.69,103.6,60.95838082]
[1646224897157,22.38030818,103.68,103.6,61.20838082]
[1646224898457,27.38030818,103.68,103.6,61.20838082]
[1646224898657,22.38030818,103.68,103.6,61.20838082]
[1646224898859,27.38030818,103.68,103.6,61.20838082]
[1646224899660,27.63030818,103.68,103.6,61.20838082]
[1646224900061,27.63030818,103.68,103.61,0.41735157]
[1646224900264,27.63030818,103.68,103.6,61.20838082]
[1646224900462,22.63030818,103.68,103.6,61.20838082]
[1646224900662,96.57,103.67,103.6,60.95838082]
[1646224900964,14.4816,103.65,103.56,22.7519]
[1646224901964,42.66738878,103.64,103.57,59.2191104]
[1646224902263,14.4816,103.65,103.57,59.2191104]
[1646224902465,14.4816,103.65,103.58,0.47882692]
[1646224903065,14.7316,103.65,103.57,59.4691104]
[1646224903765,14.7316,103.65,103.57,117.5591104]
[1646224903966,5.0,103.66,103.57,117.5591104]
[1646224904165,0.25,103.66,103.57,121.4191104]
[1646224904366,14.4778,103.67,103.57,217.9891104]
[1646224904566,14.7278,103.67,103.58,0.61369666]
[1646224904766,14.7278,103.67,103.59,26.6677101]
[1646224904965,14.7278,103.67,103.59,26.9177101]
[1646224905266,14.4778,103.67,103.59,26.9177101]
[1646224905665,0.89814364,103.66,103.59,26.9177101]
[1646224905865,14.4778,103.67,103.59,26.9177101]
[1646224906771,69.62160434,103.67,103.59,26.9177101]
[1646224907370,69.87160434,103.67,103.59,26.9177101]
[1646224907768,69.62160434,103.67,103.59,26.9177101]
[1646224907967,5.0,103.68,103.59,26.9177101]
[1646224908168,62.9711,103.71,103.6,0.64217711]
[1646224908368,5.0,103.71,103.6,203.20377711]
[1646224908568,5.0,103.71,103.6,106.88377711]
[1646224908767,5.0,103.71,103.6,106.2416]
[1646224908968,54.32520228,103.7,103.61,52.22617581]
[1646224909168,68.79820228,103.7,103.61,52.47617581]
[1646224909971,2.34366897,103.69,103.61,52.22617581]
[1646224910169,14.4778,103.67,103.61,52.22617581]
[1646224910369,14.4778,103.67,103.6,47.9016]
[1646224910571,14.7278,103.67,103.6,47.9016]
[1646224910769,14.7278,103.67,103.57,3.859]
[1646224910971,2.34366897,103.66,103.57,3.859]
[1646224911168,14.481,103.64,103.57,3.859]
[1646224911371,45.08987505,103.63,103.58,46.33828023]
[1646224912071,45.08987505,103.63,103.58,46.58828023]
[1646224915678,14.481,103.64,103.58,46.58828023]
[1646224915977,14.481,103.64,103.59,0.82682435]
[1646224916178,14.481,103.64,103.58,46.58828023]
[1646224917081,48.64096445,103.65,103.58,46.58828023]
[1646224917479,71.12170554,103.69,103.58,201.24828023]
[1646224917681,48.2551,103.7,103.59,0.77486834]
[1646224917881,5.0,103.7,103.6,58.09]
[1646224918079,5.0,103.7,103.6,58.34]
[1646224918480,52.70777107,103.69,103.61,39.54854027]
[1646224918679,52.70777107,103.69,103.61,39.79854027]
[1646224918680,67.18217107,103.69,103.61,39.79854027]
[1646224918979,67.43217107,103.69,103.61,39.79854027]
[1646224920581,67.43217107,103.69,103.59,46.2912]
[1646224920983,92.37644327,103.69,103.59,46.2912]
[1646224921187,5.0,103.67,103.59,46.2912]
[1646224921483,7.75540843,103.65,103.59,94.28689726]
[1646224921982,7.75540843,103.65,103.59,94.53689726]
[1646224924988,7.75540843,103.65,103.6,0.51400718]
[1646224925189,7.75540843,103.65,103.59,94.53689726]
[1646224925991,14.4793,103.66,103.59,94.53689726]
[1646224926192,14.4793,103.66,103.6,0.44071041]
[1646224926393,14.4793,103.66,103.59,94.53689726]
[1646224926799,14.4793,103.66,103.6,0.56491521]
[1646224927195,57.22887224,103.65,103.59,94.53689726]
[1646224927499,14.4793,103.66,103.59,94.53689726]
[1646224927695,5.0,103.68,103.59,94.53689726]
[1646224927897,19.4764,103.68,103.6,0.53731321]
[1646224928314,19.4764,103.68,103.59,152.62689726]
[1646224928516,71.48169596,103.68,103.59,249.19689726]
[1646224928714,71.48169596,103.68,103.59,167.10149726]
[1646224928914,71.48169596,103.68,103.59,263.67149726]
[1646224929221,52.00529596,103.68,103.59,167.10149726]
[1646224930315,52.00529596,103.68,103.59,109.01149726]
[1646224931416,66.48089596,103.68,103.59,109.01149726]
[1646224931917,5.0,103.7,103.59,263.67149726]
[1646224932115,5.0,103.7,103.6,0.45096172]
[1646224932316,5.0,103.7,103.61,58.09]
[1646224932518,5.0,103.7,103.61,82.5622]
[1646224932720,43.71910372,103.69,103.62,37.89112324]
[1646224932919,43.71910372,103.69,103.62,38.14112324]
[1646224933418,43.96910372,103.69,103.62,38.14112324]
[1646224933821,5.0,103.7,103.62,38.14112324]
[1646224934019,49.2937722,103.73,103.62,96.23112324]
[1646224934219,46.95010323,103.73,103.63,24.4715]
[1646224934419,14.3857805,103.72,103.63,24.7215]
[1646224934819,14.3857805,103.72,103.64,47.99569726]
[1646224935019,28.8567805,103.72,103.64,48.24569726]
[1646224935223,14.721,103.72,103.64,48.24569726]
[1646224935419,11.70536372,103.71,103.64,48.24569726]
[1646224936221,26.17696372,103.71,103.64,48.24569726]
[1646224937826,28.52063269,103.71,103.64,0.25]
[1646224938023,33.52063269,103.71,103.63,48.7952]
[1646224938826,28.52063269,103.71,103.63,48.7952]
[1646224939023,5.0,103.7,103.63,0.25]
[1646224939224,14.4764,103.68,103.59,46.5217]
[1646224940227,48.75781578,103.67,103.6,45.15467247]
[1646224940430,48.75781578,103.67,103.6,45.40467247]
[1646224942027,48.75781578,103.67,103.6,0.25]
[1646224942028,2.34366897,103.66,103.6,0.25]
[1646224942228,2.34366897,103.66,103.59,46.7717]
[1646224942429,48.75781578,103.67,103.59,46.7717]
[1646224942928,14.4786,103.66,103.59,46.7717]
[1646224943130,11.70536372,103.65,103.59,46.7717]
[1646224943927,11.70536372,103.65,103.6,25.0031975]
[1646224944128,11.70536372,103.65,103.6,25.2531975]
[1646224944329,11.95536372,103.65,103.6,25.0031975]
[1646224945128,26.43516372,103.65,103.6,25.0031975]
[1646224945634,26.43516372,103.65,103.6,25.2531975]
[1646224945828,26.43516372,103.65,103.6,0.25]
[1646224946129,123.00516372,103.65,103.57,3.859]
[1646224946331,2.34366897,103.64,103.57,3.859]
[1646224946529,14.4846,103.62,103.57,3.859]
[1646224946731,48.75781578,103.61,103.57,3.859]
[1646224949536,48.75781578,103.61,103.58,39.13470559]
[1646224949737,21.96706897,103.64,103.59,3.03219997]
[1646224950147,5.0,103.63,103.52,63.2383]
[1646224950336,5.0,103.63,103.52,63.4883]
[1646224950536,7.34366897,103.63,103.52,63.4883]
[1646224950740,50.63526577,103.62,103.53,48.28348084]
[1646224950937,50.63526577,103.62,103.53,48.53348084]
[1646224951137,65.11946577,103.62,103.53,48.53348084]
[1646224953042,5.0,103.63,103.53,217.67608084]
[1646224953241,37.1486,103.64,103.53,217.67608084]
[1646224953242,37.1486,103.64,103.54,0.59691448]
[1646224953438,37.1486,103.64,103.54,178.94841448]
[1646224953639,22.6667,103.64,103.54,179.19841448]
[1646224953845,22.6667,103.64,103.55,6.0]
[1646224954039,57.45770587,103.65,103.56,37.60333966]
[1646224954264,57.45770587,103.65,103.56,37.85333966]
[1646224955040,71.93760587,103.65,103.56,37.85333966]
[1646224956043,72.18760587,103.65,103.56,37.85333966]
[1646224956742,14.7299,103.65,103.56,95.94333966]
[1646224956942,14.7299,103.65,103.57,0.39782795]
[1646224957143,14.7299,103.65,103.56,37.85333966]
[1646224957345,14.4799,103.65,103.56,37.85333966]
[1646224957545,14.4779,103.67,103.57,0.39683522]
[1646224957746,14.4779,103.67,103.58,48.28348084]
[1646224957948,14.4779,103.67,103.58,72.05028084]
[1646224958949,14.4779,103.67,103.58,86.52668084]
[1646224959553,14.4779,103.67,103.58,144.61668084]
[1646224959950,39.3084,103.69,103.58,144.61668084]
[1646224960152,39.5584,103.69,103.58,147.16572087]
[1646224960351,43.98059611,103.72,103.58,149.17363657]
[1646224960561,19.7878,103.74,103.6,58.09]
[1646224960752,54.59828262,103.73,103.62,72.56]
[1646224960956,54.59828262,103.73,103.63,69.27919965]
[1646224961152,14.40872709,103.72,103.63,69.52919965]
[1646224961351,5.86489688,103.71,103.63,69.52919965]
[1646224961775,6.11489688,103.71,103.63,69.52919965]
[1646224962170,6.11489688,103.71,103.63,142.08869965]
[1646224962370,0.25,103.71,103.63,142.08869965]
[1646224962572,70.62146897,103.74,103.63,83.99869965]
[1646224962974,91.73779288,103.74,103.63,83.99869965]
[1646224963172,14.41527374,103.73,103.63,83.99869965]
[1646224963372,64.51654411,103.73,103.63,83.99869965]
[1646224963772,14.41527374,103.73,103.63,243.193392]
[1646224963971,115.24366897,103.76,103.65,154.66]
[1646224964173,115.24366897,103.76,103.66,120.848]
[1646224964371,14.4138174,103.75,103.66,121.098]
[1646224964774,56.71733563,103.75,103.67,97.71552085]
[1646224965072,56.71733563,103.75,103.67,97.96552085]
[1646224965272,56.71733563,103.75,103.69,58.09]
[1646224965472,56.71733563,103.75,103.7,104.35129965]
[1646224965675,56.71733563,103.75,103.7,104.60129965]
[1646224966075,14.4638,103.77,103.7,104.60129965]
[1646224966273,5.0,103.78,103.7,104.60129965]
[1646224966473,5.25,103.78,103.7,46.26129965]
[1646224966673,44.23059611,103.78,103.7,46.26129965]
[1646224966874,19.40748618,103.77,103.7,46.26129965]
[1646224967075,55.14302915,103.76,103.7,46.26129965]
[1646224967878,55.14302915,103.76,103.7,46.51129965]
[1646224968277,14.4621,103.78,103.7,46.51129965]
[1646224968578,14.39771523,103.77,103.7,46.51129965]
[1646224968977,14.4621,103.78,103.7,46.51129965]
[1646224969177,49.28875149,103.77,103.7,46.51129965]
[1646224969979,49.28875149,103.77,103.7,104.60129965]
[1646224970179,49.28875149,103.77,103.7,46.51129965]
[1646224970781,63.75195149,103.77,103.7,46.51129965]
[1646224970979,64.00195149,103.77,103.7,46.51129965]
[1646224973383,64.00195149,103.77,103.71,0.41972162]
[1646224974288,64.00195149,103.77,103.7,46.51129965]
[1646224975989,107.98947507,103.77,103.68,23.4578]
[1646224976789,5.0,103.75,103.68,23.4578]
[1646224976991,11.17442801,103.74,103.69,60.56803605]
[1646224977392,11.17442801,103.74,103.66,24.4632]
[1646224977593,13.52502445,103.74,103.66,24.4632]
[1646224977993,18.52502445,103.74,103.66,24.4632]
[1646224978392,18.52502445,103.74,103.67,44.42594777]
[1646224978792,18.52502445,103.74,103.67,44.67594777]
[1646224978992,27.99252445,103.74,103.67,44.67594777]
[1646224979396,32.99252445,103.74,103.67,44.67594777]
[1646224979894,27.99252445,103.74,103.67,44.67594777]
[1646224980095,19.4695,103.73,103.67,0.25]
[1646224980296,19.4695,103.73,103.66,24.7132]
[1646224980519,21.82009644,103.73,103.66,24.7132]
[1646224981098,49.28875149,103.72,103.66,74.28106296]
[1646224981397,63.75895149,103.72,103.66,74.28106296]
[1646224983704,49.28875149,103.72,103.66,74.28106296]
[1646224986506,14.4686,103.73,103.66,74.28106296]
[1646224986708,14.4686,103.73,103.67,0.41589262]
[1646224987107,14.4686,103.73,103.66,74.28106296]
[1646224987509,52.01038338,103.72,103.66,74.28106296]
[1646224989429,52.01038338,103.72,103.66,228.94106296]
[1646224989624,52.01038338,103.72,103.66,132.37106296]
[1646224990425,52.01038338,103.72,103.66,74.28106296]
[1646224990628,52.01038338,103.72,103.66,132.37106296]
[1646224991627,52.01038338,103.72,103.66,74.28106296]
[1646224994330,52.01038338,103.72,103.66,24.7132]
[1646224996134,66.73068338,103.72,103.66,24.7132]
[1646224996535,66.73068338,103.72,103.67,40.49481323]
[1646224996734,52.26038338,103.72,103.67,40.49481323]
[1646224996937,24.1824,103.76,103.67,40.74481323]
[1646224997137,29.4324,103.76,103.68,0.39696596]
[1646224997335,24.4324,103.76,103.67,64.10751323]
[1646224997735,38.8976,103.76,103.67,218.76751323]
[1646224997935,47.32881502,103.75,103.67,233.23121323]
[1646224998136,5.0,103.78,103.67,235.78025326]
[1646224998337,2.35059644,103.79,103.67,235.78025326]
[1646224998836,14.4627,103.78,103.68,3.856]
[1646224999036,43.66797539,103.77,103.7,45.39200727]
[1646224999239,43.66797539,103.77,103.7,45.64200727]
[1646225000039,5.0,103.79,103.71,154.66]
[1646225000239,147.88040323,103.8,103.71,154.91]
[1646225000439,152.88040323,103.8,103.71,154.91]
[1646225000641,5.0,103.8,103.71,154.91]
[1646225000840,0.48395248,103.81,103.72,0.54715129]
[1646225001141,0.48395248,103.81,103.73,169.115]
[1646225001340,0.48395248,103.81,103.74,200.05200727]
[1646225001543,0.48395248,103.81,103.74,200.30200727]
[1646225002341,0.48395248,103.81,103.74,214.75600727]
[1646225003442,0.48395248,103.81,103.74,103.73200727]
[1646225003641,0.48395248,103.81,103.74,45.64200727]
[1646225005850,0.48395248,103.81,103.74,45.39200727]
[1646225006244,14.94145248,103.81,103.72,3.854]
[1646225006445,14.94145248,103.81,103.72,4.104]
[1646225006646,5.0,103.8,103.72,4.104]
[1646225007046,5.0,103.8,103.72,0.25]
[1646225007245,9.45322704,103.79,103.72,48.88244706]
[1646225007649,9.45322704,103.79,103.72,106.97244706]
[1646225008047,23.91392704,103.79,103.72,106.97244706]
[1646225008447,23.91392704,103.79,103.72,48.88244706]
[1646225008646,23.91392704,103.79,103.72,49.13244706]
[1646225010649,28.91392704,103.79,103.72,49.13244706]
[1646225011448,28.91392704,103.79,103.72,48.88244706]
[1646225012050,28.91392704,103.79,103.71,45.8099]
[1646225012350,26.26452348,103.79,103.69,24.3039]
[1646225012553,5.0,103.78,103.69,24.3039]
[1646225012751,5.0,103.77,103.69,24.3039]
[1646225013050,5.0,103.77,103.69,0.25]